[Event "Early-Titled-Tuesday-Blitz-April-23-2024"]
[Site "Chess.com"]
[Date "2024.04.23"]
[Round "10"]
[White "ProtectiveCarrot"]
[Black "FaustinoOro"]
[Result "1-0"]
[WhiteElo "2420"]
[BlackElo "2868"]
[TimeControl "180+1"]
[EndTime "10:01:01 PDT"]
[Termination "ProtectiveCarrot won on time"]

1. e4 {[%clk 0:03:00.9]} 1... e5 {[%clk 0:02:54.5]} 2. Nf3 {[%clk 0:03:00.4]}
2... Nc6 {[%clk 0:02:55.1]} 3. Bb5 {[%clk 0:02:59.8]} 3... a6 {[%clk 0:02:55.3]}
4. Ba4 {[%clk 0:03:00.2]} 4... Nf6 {[%clk 0:02:55.1]} 5. O-O {[%clk 0:03:00]}
5... b5 {[%clk 0:02:55.6]} 6. Bb3 {[%clk 0:03:00]} 6... Bc5 {[%clk 0:02:56.1]}
7. Re1 {[%clk 0:02:56.6]} 7... O-O {[%clk 0:02:54.5]} 8. c3 {[%clk 0:02:54.6]}
8... d6 {[%clk 0:02:53.7]} 9. h3 {[%clk 0:02:53.5]} 9... h6 {[%clk 0:02:53.6]}
10. a4 {[%clk 0:02:51.5]} 10... Rb8 {[%clk 0:02:53.2]} 11. d4 {[%clk 0:02:50]}
11... Bb6 {[%clk 0:02:52.6]} 12. Be3 {[%clk 0:02:46.4]} 12... Re8 {[%clk
0:02:38.8]} 13. Nbd2 {[%clk 0:02:45.6]} 13... exd4 {[%clk 0:02:27.3]} 14. cxd4
{[%clk 0:02:43.4]} 14... Nb4 {[%clk 0:02:27.5]} 15. Qb1 {[%clk 0:02:21.7]} 15...
Bb7 {[%clk 0:02:19.4]} 16. a5 {[%clk 0:01:55.7]} 16... Ba7 {[%clk 0:02:19.3]}
17. d5 {[%clk 0:01:56.1]} 17... Bxe3 {[%clk 0:02:19]} 18. Rxe3 {[%clk 0:01:57]}
18... c5 {[%clk 0:02:19.5]} 19. dxc6 {[%clk 0:01:54.3]} 19... Nxc6 {[%clk
0:02:19.8]} 20. Qa2 {[%clk 0:01:45.2]} 20... Qd7 {[%clk 0:02:00.8]} 21. Rae1
{[%clk 0:01:43.5]} 21... Rbc8 {[%clk 0:01:50.7]} 22. Nf1 {[%clk 0:01:16.7]}
22... Nb4 {[%clk 0:01:24]} 23. Qb1 {[%clk 0:01:16.3]} 23... Qc7 {[%clk
0:01:07.1]} 24. Rc3 {[%clk 0:01:10.6]} 24... Qxa5 {[%clk 0:01:03.9]} 25. Ng3
{[%clk 0:01:06.2]} 25... Rxc3 {[%clk 0:00:58.5]} 26. bxc3 {[%clk 0:01:07.1]}
26... Nc6 {[%clk 0:00:59.1]} 27. Qd3 {[%clk 0:01:04.7]} 27... Ne5 {[%clk
0:00:55.7]} 28. Nxe5 {[%clk 0:01:00.7]} 28... dxe5 {[%clk 0:00:56.6]} 29. Nf5
{[%clk 0:00:59.3]} 29... Bc8 {[%clk 0:00:16.2]} 30. Nd6 {[%clk 0:00:53.4]} 30...
Rf8 {[%clk 0:00:16.7]} 31. Bxf7+ {[%clk 0:00:29.5]} 31... Rxf7 {[%clk
0:00:15.8]} 32. Nxc8 {[%clk 0:00:30.2]} 32... Qc7 {[%clk 0:00:15.5]} 33. Qg3
{[%clk 0:00:22.8]} 33... Qxc8 {[%clk 0:00:14.2]} 34. Qxe5 {[%clk 0:00:23.3]}
34... Qe8 {[%clk 0:00:12.3]} 35. Qd6 {[%clk 0:00:20.2]} 35... Qe7 {[%clk
0:00:07.7]} 36. Qxa6 {[%clk 0:00:20]} 36... Qc5 {[%clk 0:00:04]} 37. e5 {[%clk
0:00:11.9]} 37... Nd5 {[%clk 0:00:04.2]} 38. Qa2 {[%clk 0:00:08.5]} 38... Kh8
{[%clk 0:00:03]} 39. e6 {[%clk 0:00:07.9]} 39... Re7 {[%clk 0:00:02.4]} 40. Qa8+
{[%clk 0:00:05.2]} 40... Kh7 {[%clk 0:00:02.4]} 41. Re5 {[%clk 0:00:05.3]} 1-0

[Event "Early-Titled-Tuesday-Blitz-April-23-2024"]
[Site "Chess.com"]
[Date "2024.04.23"]
[Round "10"]
[White "platy3"]
[Black "Fy_Rakotomaharo"]
[Result "0-1"]
[WhiteElo "2886"]
[BlackElo "2747"]
[TimeControl "180+1"]
[EndTime "10:01:02 PDT"]
[Termination "Fy_Rakotomaharo won by checkmate"]

1. e4 {[%clk 0:03:00.9]} 1... e5 {[%clk 0:02:59.9]} 2. Nf3 {[%clk 0:03:00.6]}
2... Nf6 {[%clk 0:03:00.5]} 3. Nxe5 {[%clk 0:02:59.9]} 3... d6 {[%clk
0:03:01.1]} 4. Nf3 {[%clk 0:03:00.6]} 4... Nxe4 {[%clk 0:03:01.7]} 5. d4 {[%clk
0:03:01.2]} 5... d5 {[%clk 0:03:02]} 6. Bd3 {[%clk 0:03:01.9]} 6... Nc6 {[%clk
0:03:02.3]} 7. O-O {[%clk 0:03:02.6]} 7... Be7 {[%clk 0:03:02.4]} 8. Nbd2 {[%clk
0:03:02.6]} 8... f5 {[%clk 0:02:38.6]} 9. c4 {[%clk 0:02:54.6]} 9... Nb4 {[%clk
0:02:37.5]} 10. Bb1 {[%clk 0:02:52.1]} 10... c6 {[%clk 0:02:37.2]} 11. a3 {[%clk
0:02:46.9]} 11... Na6 {[%clk 0:02:36.7]} 12. b4 {[%clk 0:02:47]} 12... Nc7
{[%clk 0:02:35.6]} 13. Qb3 {[%clk 0:02:42.6]} 13... Be6 {[%clk 0:02:33.2]} 14.
Re1 {[%clk 0:02:39.6]} 14... O-O {[%clk 0:02:30.1]} 15. cxd5 {[%clk 0:02:34.8]}
15... Bxd5 {[%clk 0:02:03.7]} 16. Qc2 {[%clk 0:02:33.2]} 16... Bd6 {[%clk
0:01:58.6]} 17. Ne5 {[%clk 0:02:25.3]} 17... Bxe5 {[%clk 0:01:45]} 18. dxe5
{[%clk 0:02:24.8]} 18... Ne6 {[%clk 0:01:45.6]} 19. Nf3 {[%clk 0:02:14.3]} 19...
g5 {[%clk 0:01:30.6]} 20. Rd1 {[%clk 0:02:06.3]} 20... g4 {[%clk 0:01:27.9]} 21.
Nd4 {[%clk 0:02:06.5]} 21... Qe7 {[%clk 0:01:09.4]} 22. Nxe6 {[%clk 0:01:41.4]}
22... Qxe6 {[%clk 0:01:09.3]} 23. Qb2 {[%clk 0:01:24.3]} 23... Qg6 {[%clk
0:00:31.2]} 24. Bf4 {[%clk 0:01:21.4]} 24... Ng5 {[%clk 0:00:30.9]} 25. Ba2
{[%clk 0:01:14.3]} 25... Ne6 {[%clk 0:00:26]} 26. g3 {[%clk 0:00:42]} 26... Rad8
{[%clk 0:00:20.1]} 27. Bxd5 {[%clk 0:00:41.7]} 27... cxd5 {[%clk 0:00:20.3]} 28.
Rd3 {[%clk 0:00:38.4]} 28... Kg7 {[%clk 0:00:17]} 29. Rad1 {[%clk 0:00:37.8]}
29... d4 {[%clk 0:00:17.5]} 30. Rc1 {[%clk 0:00:30.3]} 30... Rd7 {[%clk
0:00:15.6]} 31. Qb3 {[%clk 0:00:25.1]} 31... Rff7 {[%clk 0:00:12.2]} 32. Rc8
{[%clk 0:00:23.3]} 32... h5 {[%clk 0:00:12.3]} 33. Qc4 {[%clk 0:00:22.2]} 33...
h4 {[%clk 0:00:12.2]} 34. Kf1 {[%clk 0:00:22.1]} 34... Qh5 {[%clk 0:00:11.2]}
35. Ke1 {[%clk 0:00:17.5]} 35... Rfe7 {[%clk 0:00:09.8]} 36. Qc2 {[%clk
0:00:04.4]} 36... Rc7 {[%clk 0:00:07.1]} 37. Rxc7 {[%clk 0:00:04.3]} 37... Rxc7
{[%clk 0:00:08]} 38. Qa2 {[%clk 0:00:04.3]} 38... Kf7 {[%clk 0:00:03.8]} 39. Ke2
{[%clk 0:00:03.9]} 39... hxg3 {[%clk 0:00:04]} 40. hxg3 {[%clk 0:00:04.5]} 40...
Qh1 {[%clk 0:00:04.2]} 41. Rd1 {[%clk 0:00:03.7]} 41... Qf3+ {[%clk 0:00:04]}
42. Ke1 {[%clk 0:00:04.4]} 42... d3 {[%clk 0:00:04.3]} 43. Qd2 {[%clk
0:00:03.5]} 43... Qh1# {[%clk 0:00:03.1]} 0-1

[Event "Early-Titled-Tuesday-Blitz-April-23-2024"]
[Site "Chess.com"]
[Date "2024.04.23"]
[Round "10"]
[White "baki83"]
[Black "ChristianArca"]
[Result "1-0"]
[WhiteElo "2891"]
[BlackElo "2647"]
[TimeControl "180+1"]
[EndTime "10:01:03 PDT"]
[Termination "baki83 won by resignation"]

1. e4 {[%clk 0:02:52.7]} 1... c6 {[%clk 0:03:00.1]} 2. Nf3 {[%clk 0:02:52.3]}
2... d5 {[%clk 0:03:01]} 3. Nc3 {[%clk 0:02:53.1]} 3... Bg4 {[%clk 0:03:01.2]}
4. h3 {[%clk 0:02:53.1]} 4... Bxf3 {[%clk 0:03:01.7]} 5. Qxf3 {[%clk 0:02:53.5]}
5... Nf6 {[%clk 0:03:02.6]} 6. Be2 {[%clk 0:02:50.7]} 6... e5 {[%clk 0:03:02.4]}
7. O-O {[%clk 0:02:39.1]} 7... d4 {[%clk 0:03:01]} 8. Nb1 {[%clk 0:02:39.1]}
8... Nbd7 {[%clk 0:03:01.4]} 9. d3 {[%clk 0:02:39.3]} 9... c5 {[%clk 0:03:02]}
10. a4 {[%clk 0:02:38.4]} 10... b6 {[%clk 0:03:01.8]} 11. Na3 {[%clk 0:02:38]}
11... a6 {[%clk 0:03:01.6]} 12. Qg3 {[%clk 0:02:26.7]} 12... Qc7 {[%clk
0:02:11.6]} 13. c3 {[%clk 0:02:09.1]} 13... Bd6 {[%clk 0:01:53.7]} 14. Qxg7
{[%clk 0:02:05.6]} 14... Rg8 {[%clk 0:01:52.9]} 15. Qh6 {[%clk 0:02:05.8]} 15...
O-O-O {[%clk 0:01:53.3]} 16. Nc4 {[%clk 0:01:56.9]} 16... Rg6 {[%clk 0:01:18.6]}
17. Qd2 {[%clk 0:01:56.5]} 17... Rdg8 {[%clk 0:01:17.9]} 18. g3 {[%clk
0:01:53.3]} 18... h5 {[%clk 0:01:18]} 19. Bd1 {[%clk 0:01:27.2]} 19... Nf8
{[%clk 0:01:09.9]} 20. Kh2 {[%clk 0:01:08]} 20... Ne6 {[%clk 0:01:06.3]} 21. Bf3
{[%clk 0:00:47.5]} 21... Bf8 {[%clk 0:01:04.3]} 22. Qe2 {[%clk 0:00:45]} 22...
h4 {[%clk 0:01:04.3]} 23. Rg1 {[%clk 0:00:36.6]} 23... Bh6 {[%clk 0:00:58]} 24.
Bh5 {[%clk 0:00:20.1]} 24... hxg3+ {[%clk 0:00:36.9]} 25. fxg3 {[%clk
0:00:19.4]} 25... Nxh5 {[%clk 0:00:35]} 26. Qxh5 {[%clk 0:00:18.8]} 26... Bxc1
{[%clk 0:00:29.2]} 27. Raxc1 {[%clk 0:00:19.7]} 27... Rg5 {[%clk 0:00:28.7]} 28.
Qf3 {[%clk 0:00:18.9]} 28... b5 {[%clk 0:00:26.9]} 29. axb5 {[%clk 0:00:18.5]}
29... axb5 {[%clk 0:00:27.8]} 30. Qxf7 {[%clk 0:00:10.7]} 30... Nd8 {[%clk
0:00:08.3]} 31. Qxc7+ {[%clk 0:00:10.3]} 31... Kxc7 {[%clk 0:00:09.2]} 32. Nd2
{[%clk 0:00:10.2]} 32... Rh5 {[%clk 0:00:06.8]} 33. g4 {[%clk 0:00:09.6]} 33...
Rh7 {[%clk 0:00:07.4]} 34. cxd4 {[%clk 0:00:09.8]} 34... exd4 {[%clk 0:00:06.6]}
35. Rxc5+ {[%clk 0:00:10]} 35... Kb6 {[%clk 0:00:07.5]} 36. Rd5 {[%clk
0:00:10.3]} 36... Nc6 {[%clk 0:00:08]} 37. Nf3 {[%clk 0:00:09.7]} 37... Rgh8
{[%clk 0:00:08.4]} 38. Rg3 {[%clk 0:00:08.7]} 38... Rf7 {[%clk 0:00:08]} 39.
Nxd4 {[%clk 0:00:07.9]} 39... Rf2+ {[%clk 0:00:08]} 40. Rg2 {[%clk 0:00:08]}
40... Rxg2+ {[%clk 0:00:08]} 41. Kxg2 {[%clk 0:00:08]} 1-0

[Event "Early-Titled-Tuesday-Blitz-April-23-2024"]
[Site "Chess.com"]
[Date "2024.04.23"]
[Round "10"]
[White "Flaccidmoves"]
[Black "Ati1517"]
[Result "1-0"]
[WhiteElo "2451"]
[BlackElo "2267"]
[TimeControl "180+1"]
[EndTime "10:01:03 PDT"]
[Termination "Flaccidmoves won by checkmate"]

1. c4 {[%clk 0:03:00.9]} 1... Nf6 {[%clk 0:02:37.2]} 2. Nc3 {[%clk 0:03:00.4]}
2... g6 {[%clk 0:02:36.8]} 3. e4 {[%clk 0:03:00.8]} 3... Bg7 {[%clk 0:02:37.4]}
4. d4 {[%clk 0:02:57.8]} 4... d6 {[%clk 0:02:37.6]} 5. f3 {[%clk 0:02:58.2]}
5... O-O {[%clk 0:02:38]} 6. Be3 {[%clk 0:02:58.6]} 6... e5 {[%clk 0:02:37.2]}
7. Nge2 {[%clk 0:02:56.4]} 7... Nc6 {[%clk 0:02:33.7]} 8. d5 {[%clk 0:02:55.9]}
8... Ne7 {[%clk 0:02:34.1]} 9. Qd2 {[%clk 0:02:55.7]} 9... c6 {[%clk 0:02:34.3]}
10. O-O-O {[%clk 0:02:47.6]} 10... cxd5 {[%clk 0:02:32.6]} 11. cxd5 {[%clk
0:02:47]} 11... Bd7 {[%clk 0:02:31]} 12. Kb1 {[%clk 0:02:41.6]} 12... b5 {[%clk
0:02:29.7]} 13. Nc1 {[%clk 0:02:24.5]} 13... b4 {[%clk 0:02:27.3]} 14. Nb5
{[%clk 0:02:04.8]} 14... a6 {[%clk 0:01:59.7]} 15. Nxd6 {[%clk 0:02:03.8]} 15...
Ba4 {[%clk 0:01:58.9]} 16. Nb7 {[%clk 0:01:45.1]} 16... Qb8 {[%clk 0:01:53]} 17.
b3 {[%clk 0:01:28.7]} 17... Bxb3 {[%clk 0:01:51.3]} 18. Nxb3 {[%clk 0:01:18]}
18... Qxb7 {[%clk 0:01:50.9]} 19. Nc5 {[%clk 0:01:07.1]} 19... Qc8 {[%clk
0:01:48.5]} 20. d6 {[%clk 0:01:03.4]} 20... Nc6 {[%clk 0:01:48.4]} 21. d7 {[%clk
0:01:01.4]} 21... Qc7 {[%clk 0:01:48.4]} 22. Qd6 {[%clk 0:00:57.2]} 22... Qxd6
{[%clk 0:01:38.9]} 23. Rxd6 {[%clk 0:00:58.1]} 23... Nd4 {[%clk 0:01:38.8]} 24.
Bxd4 {[%clk 0:00:52.8]} 24... exd4 {[%clk 0:01:39.1]} 25. Bxa6 {[%clk
0:00:52.9]} 25... Nh5 {[%clk 0:01:33.8]} 26. Bc8 {[%clk 0:00:44.5]} 26... Bf6
{[%clk 0:01:27.6]} 27. g3 {[%clk 0:00:32]} 27... Be7 {[%clk 0:01:24.3]} 28. Rd5
{[%clk 0:00:30.4]} 28... Raxc8 {[%clk 0:01:18.1]} 29. dxc8=Q {[%clk 0:00:30.3]}
29... Rxc8 {[%clk 0:01:18.5]} 30. Rc1 {[%clk 0:00:28.8]} 30... Bf6 {[%clk
0:01:14.8]} 31. f4 {[%clk 0:00:27.3]} 31... Ng7 {[%clk 0:01:12.2]} 32. e5 {[%clk
0:00:26.8]} 32... Be7 {[%clk 0:01:11.6]} 33. Ne4 {[%clk 0:00:23.1]} 33... Rxc1+
{[%clk 0:01:08.2]} 34. Kxc1 {[%clk 0:00:24]} 34... Ne6 {[%clk 0:01:07.5]} 35.
Rd7 {[%clk 0:00:21.2]} 35... Bf8 {[%clk 0:01:06.3]} 36. Nf6+ {[%clk 0:00:20.7]}
36... Kg7 {[%clk 0:01:05.7]} 37. Rb7 {[%clk 0:00:21]} 37... Bc5 {[%clk
0:01:02.6]} 38. Ne8+ {[%clk 0:00:19.9]} 38... Kf8 {[%clk 0:01:02.2]} 39. Nd6
{[%clk 0:00:20.5]} 39... Nd8 {[%clk 0:00:51.4]} 40. Rb8 {[%clk 0:00:19.8]} 40...
Ke7 {[%clk 0:00:48.4]} 41. Ne4 {[%clk 0:00:18.3]} 41... Nc6 {[%clk 0:00:47.6]}
42. Rc8 {[%clk 0:00:16.9]} 42... Kd7 {[%clk 0:00:47.1]} 43. Rh8 {[%clk
0:00:16.4]} 43... Bb6 {[%clk 0:00:42]} 44. Rxh7 {[%clk 0:00:16.4]} 44... Ke6
{[%clk 0:00:42.1]} 45. Ng5+ {[%clk 0:00:16.4]} 45... Kd5 {[%clk 0:00:42]} 46.
Rxf7 {[%clk 0:00:16]} 46... b3 {[%clk 0:00:40.8]} 47. axb3 {[%clk 0:00:15.6]}
47... d3 {[%clk 0:00:40.9]} 48. Rd7+ {[%clk 0:00:15.4]} 48... Kc5 {[%clk
0:00:38.9]} 49. e6 {[%clk 0:00:15.3]} 49... Bd8 {[%clk 0:00:35.4]} 50. Rxd8
{[%clk 0:00:14]} 50... Nxd8 {[%clk 0:00:35.5]} 51. e7 {[%clk 0:00:14.7]} 51...
Ne6 {[%clk 0:00:35.7]} 52. e8=Q {[%clk 0:00:14.9]} 52... Nxg5 {[%clk 0:00:35.1]}
53. fxg5 {[%clk 0:00:15.2]} 53... d2+ {[%clk 0:00:35.7]} 54. Kxd2 {[%clk
0:00:15.1]} 54... Kb4 {[%clk 0:00:35.1]} 55. Qe4+ {[%clk 0:00:15]} 55... Kxb3
{[%clk 0:00:36]} 56. Qc2+ {[%clk 0:00:14.3]} 56... Ka3 {[%clk 0:00:34.8]} 57.
Qc4 {[%clk 0:00:14.3]} 57... Kb2 {[%clk 0:00:34.5]} 58. Qd3 {[%clk 0:00:13.9]}
58... Ka2 {[%clk 0:00:34.5]} 59. Qc3 {[%clk 0:00:13.9]} 59... Kb1 {[%clk
0:00:32.8]} 60. Qb4+ {[%clk 0:00:13.1]} 60... Ka1 {[%clk 0:00:32.8]} 61. Kc2
{[%clk 0:00:13.7]} 61... Ka2 {[%clk 0:00:33]} 62. Qb2# {[%clk 0:00:14.6]} 1-0

[Event "Early-Titled-Tuesday-Blitz-April-23-2024"]
[Site "Chess.com"]
[Date "2024.04.23"]
[Round "10"]
[White "grantelgibbs"]
[Black "SoCalJuniorChess"]
[Result "1-0"]
[WhiteElo "1960"]
[BlackElo "2132"]
[TimeControl "180+1"]
[EndTime "10:01:03 PDT"]
[Termination "grantelgibbs won by resignation"]

1. e3 {[%clk 0:03:00]} 1... e5 {[%clk 0:02:59.4]} 2. b3 {[%clk 0:02:45.1]} 2...
d6 {[%clk 0:02:57.4]} 3. Bb2 {[%clk 0:02:39.9]} 3... g6 {[%clk 0:02:57.5]} 4.
Nf3 {[%clk 0:02:38.8]} 4... Bg7 {[%clk 0:02:57.4]} 5. d4 {[%clk 0:02:38.1]} 5...
exd4 {[%clk 0:02:56.3]} 6. Bxd4 {[%clk 0:02:35.9]} 6... Bxd4 {[%clk 0:02:55.5]}
7. Qxd4 {[%clk 0:02:35]} 7... Qf6 {[%clk 0:02:56]} 8. Nc3 {[%clk 0:02:33.7]}
8... Nc6 {[%clk 0:02:52.4]} 9. Qxf6 {[%clk 0:02:32.2]} 9... Nxf6 {[%clk
0:02:53.3]} 10. Nb5 {[%clk 0:02:31.8]} 10... Kd8 {[%clk 0:02:52.8]} 11. O-O-O
{[%clk 0:02:31]} 11... a6 {[%clk 0:02:52.7]} 12. Nbd4 {[%clk 0:02:30.5]} 12...
Nxd4 {[%clk 0:02:43.6]} 13. Rxd4 {[%clk 0:02:29.9]} 13... Be6 {[%clk 0:02:39.6]}
14. c4 {[%clk 0:02:25.4]} 14... Ng4 {[%clk 0:02:27.4]} 15. Rd2 {[%clk
0:02:23.4]} 15... Ke7 {[%clk 0:02:27.2]} 16. Bd3 {[%clk 0:02:15.1]} 16... c6
{[%clk 0:02:23.8]} 17. Rhd1 {[%clk 0:02:13.4]} 17... Rad8 {[%clk 0:02:22]} 18.
h3 {[%clk 0:02:10.4]} 18... Ne5 {[%clk 0:02:21.6]} 19. Be2 {[%clk 0:02:06.9]}
19... f5 {[%clk 0:02:04.5]} 20. Kc2 {[%clk 0:02:05.9]} 20... Rd7 {[%clk
0:02:02.2]} 21. Kc3 {[%clk 0:02:05.9]} 21... Rhd8 {[%clk 0:02:00.6]} 22. Ng5
{[%clk 0:01:59.8]} 22... h6 {[%clk 0:01:56.1]} 23. Nxe6 {[%clk 0:01:57.6]} 23...
Kxe6 {[%clk 0:01:56.9]} 24. f4 {[%clk 0:01:53.3]} 24... Nf7 {[%clk 0:01:55.5]}
25. Bf3 {[%clk 0:01:53.3]} 25... g5 {[%clk 0:01:52.6]} 26. g3 {[%clk 0:01:52.7]}
26... Kf6 {[%clk 0:01:40.6]} 27. b4 {[%clk 0:01:49.7]} 27... Re8 {[%clk
0:01:36.7]} 28. Rd3 {[%clk 0:01:46.8]} 28... Rde7 {[%clk 0:01:29]} 29. Kd2
{[%clk 0:01:38.5]} 29... gxf4 {[%clk 0:01:23]} 30. gxf4 {[%clk 0:01:37.9]} 30...
Rg8 {[%clk 0:01:21.5]} 31. Bh1 {[%clk 0:01:31.3]} 31... Rg3 {[%clk 0:01:20.5]}
32. e4 {[%clk 0:01:28.8]} 32... Rxd3+ {[%clk 0:01:14.1]} 33. Kxd3 {[%clk
0:01:28.8]} 33... Re8 {[%clk 0:01:11.3]} 34. Rg1 {[%clk 0:01:20.6]} 34... Nh8
{[%clk 0:01:05.2]} 35. Kd4 {[%clk 0:01:17.5]} 35... Ng6 {[%clk 0:01:03.8]} 36.
Ke3 {[%clk 0:01:10.7]} 36... Nh4 {[%clk 0:01:01.6]} 37. Kd4 {[%clk 0:01:06.9]}
37... Re7 {[%clk 0:00:47.3]} 38. a4 {[%clk 0:01:06.2]} 38... Rg7 {[%clk
0:00:46.7]} 39. Rxg7 {[%clk 0:01:04.9]} 39... Kxg7 {[%clk 0:00:47.6]} 40. a5
{[%clk 0:01:04.7]} 40... Kf6 {[%clk 0:00:42.8]} 41. e5+ {[%clk 0:01:04.5]} 41...
dxe5+ {[%clk 0:00:41.4]} 42. fxe5+ {[%clk 0:01:04.4]} 42... Ke6 {[%clk
0:00:41.9]} 43. b5 {[%clk 0:01:03.9]} 43... Ng6 {[%clk 0:00:29.7]} 44. bxa6
{[%clk 0:01:02.1]} 44... bxa6 {[%clk 0:00:28.6]} 45. Bxc6 {[%clk 0:01:01.3]}
45... Nxe5 {[%clk 0:00:28.9]} 46. Bh1 {[%clk 0:00:58.6]} 46... f4 {[%clk
0:00:25.1]} 47. Bd5+ {[%clk 0:00:57.4]} 47... Kf6 {[%clk 0:00:24.6]} 48. Ke4
{[%clk 0:00:55.8]} 48... Nd7 {[%clk 0:00:15]} 49. Kxf4 {[%clk 0:00:55]} 49...
Nc5 {[%clk 0:00:15.4]} 50. Ke3 {[%clk 0:00:52.6]} 50... Nb3 {[%clk 0:00:15.6]}
51. Ke4 {[%clk 0:00:52.2]} 51... Nxa5 {[%clk 0:00:16.2]} 52. c5 {[%clk
0:00:50.5]} 52... Ke7 {[%clk 0:00:15]} 53. Kf5 {[%clk 0:00:48.5]} 53... Kd7
{[%clk 0:00:13.2]} 54. Kg6 {[%clk 0:00:48.3]} 54... Nc6 {[%clk 0:00:13.6]} 55.
Kxh6 {[%clk 0:00:48.3]} 55... a5 {[%clk 0:00:11.7]} 56. h4 {[%clk 0:00:48.3]}
56... Ne5 {[%clk 0:00:10.7]} 57. Kg5 {[%clk 0:00:44.6]} 57... Nd3 {[%clk
0:00:10.8]} 58. h5 {[%clk 0:00:42.6]} 58... Nxc5 {[%clk 0:00:10.2]} 59. h6
{[%clk 0:00:42.7]} 59... Ne6+ {[%clk 0:00:06.2]} 60. Bxe6+ {[%clk 0:00:41.7]}
1-0

[Event "Early-Titled-Tuesday-Blitz-April-23-2024"]
[Site "Chess.com"]
[Date "2024.04.23"]
[Round "10"]
[White "sokidze"]
[Black "ravengelic"]
[Result "0-1"]
[WhiteElo "2798"]
[BlackElo "2696"]
[TimeControl "180+1"]
[EndTime "10:01:04 PDT"]
[Termination "ravengelic won on time"]

1. d4 {[%clk 0:03:00.9]} 1... Nf6 {[%clk 0:02:59.7]} 2. c4 {[%clk 0:03:01.4]}
2... g6 {[%clk 0:02:59.9]} 3. Nf3 {[%clk 0:02:59.7]} 3... Bg7 {[%clk 0:02:59.7]}
4. g3 {[%clk 0:03:00.5]} 4... d6 {[%clk 0:03:00.1]} 5. Bg2 {[%clk 0:03:01]} 5...
O-O {[%clk 0:03:01]} 6. Nc3 {[%clk 0:03:01]} 6... c6 {[%clk 0:03:01]} 7. O-O
{[%clk 0:03:00.8]} 7... Qa5 {[%clk 0:03:01.5]} 8. e4 {[%clk 0:02:59.2]} 8... Bg4
{[%clk 0:03:01]} 9. h3 {[%clk 0:02:57.3]} 9... Bxf3 {[%clk 0:03:01.5]} 10. Bxf3
{[%clk 0:02:57.8]} 10... c5 {[%clk 0:03:02.4]} 11. d5 {[%clk 0:02:55.3]} 11...
Qb4 {[%clk 0:02:54.6]} 12. Be2 {[%clk 0:02:47.3]} 12... Nfd7 {[%clk 0:02:44.8]}
13. Bd2 {[%clk 0:02:40.3]} 13... Qxb2 {[%clk 0:02:35.8]} 14. Rb1 {[%clk
0:02:24.2]} 14... Qa3 {[%clk 0:02:31.2]} 15. Nb5 {[%clk 0:02:23.4]} 15... Qxa2
{[%clk 0:02:28.8]} 16. Nc7 {[%clk 0:02:21.4]} 16... Na6 {[%clk 0:02:20.3]} 17.
Nxa8 {[%clk 0:02:20.7]} 17... Rxa8 {[%clk 0:02:21.2]} 18. Rxb7 {[%clk
0:02:14.3]} 18... Ne5 {[%clk 0:02:15.9]} 19. Qc1 {[%clk 0:01:46.6]} 19... Nb4
{[%clk 0:02:11.7]} 20. Rxe7 {[%clk 0:01:19.3]} 20... a5 {[%clk 0:02:09.6]} 21.
Rd1 {[%clk 0:00:36]} 21... a4 {[%clk 0:02:00.4]} 22. Bf1 {[%clk 0:00:20.5]}
22... a3 {[%clk 0:01:46.9]} 23. Bc3 {[%clk 0:00:20.4]} 23... Qb3 {[%clk
0:01:44.1]} 24. Ba1 {[%clk 0:00:17.6]} 24... Nc2 {[%clk 0:01:41]} 25. Bxe5
{[%clk 0:00:06.9]} 25... Bxe5 {[%clk 0:01:40.3]} 26. Rxe5 {[%clk 0:00:07.3]}
26... dxe5 {[%clk 0:01:41.1]} 27. Rd3 {[%clk 0:00:06.8]} 27... Qb2 {[%clk
0:01:41.1]} 28. Qxb2 {[%clk 0:00:07.2]} 28... axb2 {[%clk 0:01:42]} 29. Rb3
{[%clk 0:00:08]} 29... Ra2 {[%clk 0:01:18.9]} 30. d6 {[%clk 0:00:06.7]} 30...
Nd4 {[%clk 0:01:18]} 31. Rb8+ {[%clk 0:00:03.3]} 31... Kg7 {[%clk 0:01:17.8]}
32. d7 {[%clk 0:00:03.6]} 32... Nc6 {[%clk 0:01:14.4]} 33. Rb6 {[%clk
0:00:03.5]} 33... Nd8 {[%clk 0:00:50.4]} 34. Kg2 {[%clk 0:00:01.8]} 34... Kf8
{[%clk 0:00:50.9]} 35. Bd3 {[%clk 0:00:02.3]} 35... Ke7 {[%clk 0:00:51.3]} 36.
Bb1 {[%clk 0:00:02.8]} 36... Ra4 {[%clk 0:00:50.4]} 37. Rxb2 {[%clk 0:00:02.7]}
37... Rxc4 {[%clk 0:00:51]} 38. Ba2 {[%clk 0:00:02.3]} 38... Rxe4 {[%clk
0:00:50]} 39. Rc2 {[%clk 0:00:02.7]} 39... Ra4 {[%clk 0:00:47.9]} 40. Bb3 {[%clk
0:00:02.4]} 40... Ra5 {[%clk 0:00:46.6]} 41. Re2 {[%clk 0:00:02.1]} 41... f6
{[%clk 0:00:46.5]} 42. f4 {[%clk 0:00:02.6]} 42... Nc6 {[%clk 0:00:46.4]} 43.
Bd5 {[%clk 0:00:01.4]} 43... Kxd7 {[%clk 0:00:45.4]} 44. Bxc6+ {[%clk 0:00:02]}
44... Kxc6 {[%clk 0:00:45.8]} 45. fxe5 {[%clk 0:00:02.9]} 45... fxe5 {[%clk
0:00:45.7]} 46. Rxe5 {[%clk 0:00:03.8]} 46... Kd6 {[%clk 0:00:44.3]} 47. Re8
{[%clk 0:00:03.8]} 47... Ra7 {[%clk 0:00:43.9]} 48. Kf3 {[%clk 0:00:03.2]} 48...
c4 {[%clk 0:00:43]} 49. Rd8+ {[%clk 0:00:01.7]} 49... Rd7 {[%clk 0:00:42.1]} 50.
Rb8 {[%clk 0:00:01.8]} 50... c3 {[%clk 0:00:41.3]} 51. Ke3 {[%clk 0:00:01.7]}
51... Rc7 {[%clk 0:00:39.4]} 0-1